fUST/lending_fUST_20251026
["ID","MTS","AMOUNT","RATE_DAILY","PERIOD"]
[392389964,1761420904512,300.0,0.00016337,2]
[392389965,1761420904666,196.0,0.00016194,2]
[392389966,1761420904951,-287.76297689,0.00016337,2]
[392389967,1761420904982,-500.0,0.00016337,2]
[392389968,1761420905018,-363.36383219,0.00016337,2]
[392389969,1761420905055,-500.0,0.00016337,2]
[392389970,1761420905086,-165.53212646,0.00016337,2]
[392389971,1761420905116,196.0,0.00016226,2]
[392389972,1761420905359,196.0,0.00016258,2]
[392389973,1761420905634,196.0,0.00016291,2]
[392389974,1761420905886,196.0,0.00016323,2]
[392389975,1761420963394,300.0,0.00016337,2]
[392389976,1761421022811,300.0,0.00016337,2]
[392389977,1761421023757,620.27780899,0.000163,2]
[392389978,1761421026175,196.0,0.00016,2]
[392389979,1761421026468,196.0,0.00016051,2]
[392389980,1761421026791,196.0,0.00016102,2]
[392389981,1761421027096,196.0,0.00016154,2]
[392389982,1761421027398,196.0,0.00016205,2]
[392389983,1761421027896,196.0,0.00016256,2]
[392389984,1761421027990,196.0,0.00016307,2]
[392389985,1761421029993,7407.73219101,0.00016238,2]
[392389986,1761421030018,10000.01,0.00016238,2]
[392389987,1761421030043,10000.01,0.00016238,2]
[392389988,1761421030067,10000.01,0.00016238,2]
[392389989,1761421030090,10000.01,0.00016238,2]
[392389990,1761421030115,10000.01,0.00016238,2]
[392389991,1761421030139,10000.01,0.00016238,2]
[392389992,1761421030163,10000.01,0.00016238,2]
[392389993,1761421030186,10000.01,0.00016238,2]
[392389994,1761421030211,10000.01,0.00016238,2]
[392389995,1761421057783,1200.0,0.00016237,2]
[392389996,1761421082751,300.0,0.00016237,2]
[392389997,1761421108844,-204.83,0.00016238,2]
[392389998,1761421110305,-155.14049997,0.00016238,2]
[392389999,1761421111890,201.43408382,0.00016237,2]
[392390000,1761421111924,465.87248852,0.00016237,2]
[392390001,1761421113871,-251.28745975,0.00016238,2]
[392390002,1761421114952,155.14049997,0.00016238,2]
[392390003,1761421122703,204.83,0.00016238,2]
[392390004,1761421124713,2034.80968811,0.00016048,2]
[392390005,1761421141114,196.0,0.00016,2]
[392390006,1761421141385,171.6044513,0.00015561,2]
[392390007,1761421141493,196.0,0.00016039,2]
[392390008,1761421141729,196.0,0.00016078,2]
[392390009,1761421142035,196.0,0.00016117,2]
[392390010,1761421142336,196.0,0.00016156,2]
[392390011,1761421142524,300.0,0.00016237,2]
[392390012,1761421142620,196.0,0.00016194,2]
[392390013,1761421142970,196.0,0.00016233,2]
[392390014,1761421202148,300.0,0.00016237,2]
[392390015,1761421202175,300.0,0.00016237,2]
[392390016,1761421202448,1200.0,0.00016237,2]
[392390017,1761421204274,300.0,0.00016237,2]
[392390018,1761421239152,542.74308284,0.00016172,2]
[392390019,1761421262197,300.0,0.00016237,2]
[392390020,1761421264961,196.0,0.00016,2]
[392390021,1761421265289,196.0,0.0001606,2]
[392390022,1761421265588,196.0,0.0001612,2]
[392390023,1761421265877,63.57570544,0.0001618,2]
[392390024,1761421265900,132.42429456,0.0001618,2]
[392390025,1761421318829,500.0,0.00015989,2]
[392390026,1761421322244,300.0,0.00016237,2]
[392390027,1761421341091,1178.662107,0.00013699,2]
[392390029,1761421357941,1200.0,0.00016237,2]
[392390030,1761421364962,277.180164,0.00019,6]
[392390031,1761421380014,196.0,0.00016,2]
[392390032,1761421380438,196.0,0.00016046,2]
[392390033,1761421380647,196.0,0.00016091,2]
[392390034,1761421380954,196.0,0.00016137,2]
[392390035,1761421381777,196.0,0.00016183,2]
[392390036,1761421382123,196.0,0.00016228,2]
[392390037,1761421382192,300.0,0.00016237,2]
[392390038,1761421414460,172.276289,0.00019,6]
[392390039,1761421443079,300.0,0.00016237,2]
[392390040,1761421459402,474.90019752,0.00016174,2]
[392390051,1761421501731,196.0,0.00016,2]
[392390052,1761421501989,300.0,0.00016237,2]
[392390053,1761421502118,300.0,0.00016237,2]
[392390054,1761421502554,196.0,0.00016066,2]
[392390055,1761421503179,196.0,0.00016131,2]
[392390057,1761421503266,196.0,0.00016197,2]
[392390059,1761421503769,1200.0,0.00016237,2]
[392390060,1761421503797,300.0,0.00016237,2]
[392390066,1761421515753,213.96859442,0.00016238,2]
[392390088,1761421562270,300.0,0.00016237,2]
[392390093,1761421595099,358.28901938,0.00015616,2]
[392390095,1761421608803,164.843851,0.00015365,2]
[392390096,1761421618411,196.0,0.00016,2]
[392390097,1761421619286,196.0,0.00016053,2]
[392390098,1761421619567,124.92193612,0.00016105,2]
[392390099,1761421619590,71.07806388,0.00016105,2]
[392390100,1761421620050,196.0,0.00016158,2]
[392390101,1761421620350,196.0,0.0001621,2]
[392390102,1761421622623,300.0,0.00016237,2]
[392390187,1761421642164,2034.80968811,0.00016017,2]
[392390201,1761421647378,2979.95092275,0.00016238,2]
[392390202,1761421657070,4222.17132526,0.0001549,2]
[392390203,1761421657092,10000.01,0.0001549,2]
[392390204,1761421657114,10000.01,0.0001549,2]
[392390205,1761421657136,10000.01,0.0001549,2]
[392390206,1761421657405,10000.01,0.0001549,2]
[392390207,1761421657426,918.31649024,0.0001549,2]
[392390208,1761421657605,1200.0,0.00016237,2]
[392390209,1761421668705,500.0,0.00016237,2]
[392390210,1761421668733,500.0,0.00016237,2]
[392390211,1761421668760,500.0,0.00016237,2]
[392390212,1761421668787,500.0,0.00016237,2]
[392390213,1761421668822,500.0,0.00016237,2]
[392390214,1761421668850,500.0,0.00016237,2]
[392390215,1761421668877,500.0,0.00016237,2]
[392390216,1761421668915,500.0,0.00016237,2]
[392390217,1761421668941,500.0,0.00016237,2]
[392390218,1761421668974,500.0,0.00016237,2]
[392390219,1761421669001,500.0,0.00016237,2]
[392390220,1761421669031,500.0,0.00016237,2]
[392390221,1761421669063,500.0,0.00016237,2]
[392390222,1761421669094,404.82832035,0.00016237,2]
[392390223,1761421669124,500.0,0.00016237,2]
[392390224,1761421669152,476.86518941,0.00016237,2]
[392390225,1761421669175,23.13481059,0.00016237,2]
[392390226,1761421669208,500.0,0.00016237,2]
[392390227,1761421669667,500.0,0.00016237,2]
[392390228,1761421669697,500.0,0.00016237,2]
[392390229,1761421669727,500.0,0.00016237,2]
[392390230,1761421669766,500.0,0.00016237,2]
[392390231,1761421674062,500.0,0.00016237,2]
[392390232,1761421676226,500.0,0.00016237,2]
[392390233,1761421676264,500.0,0.00016237,2]
[392390234,1761421676302,500.0,0.00016237,2]
[392390235,1761421676332,219.62135186,0.00016237,2]
[392390236,1761421676360,500.0,0.00016237,2]
[392390237,1761421676391,500.0,0.00016237,2]
[392390238,1761421676424,500.0,0.00016237,2]
[392390239,1761421676464,500.0,0.00016237,2]
[392390240,1761421677798,3257.25383755,0.00016238,2]
[392390241,1761421677822,1742.74616245,0.00016238,2]
[392390242,1761421683601,-300.0,0.00016237,2]
[392390243,1761421686716,-3742.85,0.00016076,2]
[392390244,1761421701375,-1757.171365,0.00016076,2]
[392390245,1761421717110,-1080.57217201,0.00016238,2]
[392390246,1761421723214,-10000.01,0.00016238,2]
[392390247,1761421731987,500.0,0.00016237,2]
[392390248,1761421732053,294.83560201,0.00016237,2]
[392390249,1761421734947,371.95968418,0.00016237,2]
[392390250,1761421735515,500.0,0.00016237,2]
[392390251,1761421735570,500.0,0.00016237,2]
[392390252,1761421735618,500.0,0.00016237,2]
[392390253,1761421735676,300.0,0.00016237,2]
[392390254,1761421741764,196.0,0.0001511,2]
[392390255,1761421742050,196.0,0.00015169,2]
[392390256,1761421742324,300.0,0.00016237,2]
[392390257,1761421742420,196.0,0.00015227,2]
[392390258,1761421742657,196.0,0.00015286,2]
[392390259,1761421742960,-196.0,0.00015345,2]
[392390260,1761421743246,196.0,0.00015403,2]
[392390261,1761421743612,196.0,0.00015462,2]
[392390262,1761421743943,196.0,0.0001552,2]
[392390263,1761421744250,196.0,0.00015579,2]
[392390264,1761421744543,196.0,0.00015638,2]
[392390265,1761421744872,196.0,0.00015696,2]
[392390266,1761421745190,196.0,0.00015755,2]
[392390267,1761421745484,196.0,0.00015814,2]
[392390268,1761421745776,196.0,0.00015872,2]
[392390269,1761421746067,196.0,0.00015931,2]
[392390270,1761421753138,2020.96755063,0.00015616,2]
[392390271,1761421753488,1000.0,0.00015989,2]
[392390272,1761421769935,-196.0,0.00015989,2]
[392390273,1761421769959,-11.81920545,0.0001599,2]
[392390274,1761421775047,-968.24716318,0.0001599,2]
[392390275,1761421775102,-10000.01,0.0001599,2]
[392390276,1761421775228,-10000.01,0.0001599,2]
[392390277,1761421775366,-10000.01,0.0001599,2]
[392390278,1761421775539,-10000.01,0.0001599,2]
[392390279,1761421775685,-10000.01,0.0001599,2]
[392390280,1761421775786,-10000.01,0.0001599,2]
[392390281,1761421780875,-10000.01,0.0001599,2]
[392390282,1761421798991,-3260.49951258,0.0001583,2]
[392390283,1761421802034,300.0,0.00015989,2]
[392390284,1761421802873,231.0,0.00015989,2]
[392390285,1761421803699,234.0,0.00015989,2]
[392390286,1761421804211,1200.0,0.00015989,2]
[392390287,1761421812301,308.33768019,0.00015948,2]
[392390288,1761421816359,300.0,0.000159,2]
[392390289,1761421820652,300.00875474,0.0001599,2]
[392390290,1761421826534,300.0,0.000159,2]
[392390291,1761421829941,-200.02416959,0.0001599,2]
[392390292,1761421831444,-382.41348663,0.0001599,2]
[392390323,1761421832139,305.66453991,0.00015989,2]
[392390327,1761421832162,107.62672141,0.00015989,2]
[392390331,1761421832193,500.0,0.00015989,2]
[392390335,1761421832223,538.18671548,0.00015989,2]
[392390339,1761421832254,500.0,0.00015989,2]
[392390345,1761421832300,349.96779437,0.00015989,2]
[392390350,1761421832342,156.09203559,0.00015989,2]
[392390355,1761421832379,-28437.42597515,0.0001599,2]
[392390356,1761421832390,-196.0,0.00016048,2]
[392390358,1761421832400,-196.0,0.00016107,2]
[392390361,1761421832410,-415.53767283,0.00016137,2]
[392390364,1761421832420,-196.0,0.00016165,2]
[392390368,1761421832430,-196.0,0.00016224,2]
[392390372,1761421832439,-3292.51813503,0.00016238,2]
[392390375,1761421832449,-213.96859442,0.00016238,2]
[392390379,1761421832459,-248962.49687941,0.00016238,2]
[392390488,1761421833464,500.0,0.00015989,2]
[392390513,1761421836207,5000.0,0.0001599,2]
[392390514,1761421837350,300.0,0.000159,2]
[392390633,1761421840366,-3e-08,0.00016238,2]
[392390741,1761421842759,193.5947865,0.00015989,2]
[392390744,1761421843262,500.0,0.00015989,2]
[392390745,1761421843323,500.0,0.00015989,2]
[392390746,1761421843376,469.90139969,0.00015989,2]
[392390747,1761421843456,-321.46471353,0.00016238,2]
[392390763,1761421846839,326.25005546,0.00015989,2]
[392390764,1761421848542,300.0,0.000159,2]
[392390765,1761421858453,2084.85,0.0001599,2]
[392390766,1761421874878,-196.0,0.00016,2]
[392390767,1761421874902,-107.45128676,0.00016,2]
[392390768,1761421875089,-89.04312823,0.00016,2]
[392390769,1761421875119,-196.0,0.00016057,2]
[392390770,1761421875152,-196.0,0.00016114,2]
[392390771,1761421875222,-196.0,0.0001617,2]
[392390772,1761421875249,-196.0,0.00016227,2]
[392390773,1761421875276,-300.0,0.00016237,2]
[392390774,1761421875969,-1921.4532602,0.00016238,2]
[392390775,1761421881039,-250.0,0.00015095,2]
[392390776,1761421881067,-304.0,0.00016,2]
[392390777,1761421881119,-8892.01,0.00016238,2]
[392390778,1761421881170,-802.91282409,0.00016238,2]
[392390779,1761421881200,-196.0,0.00016284,2]
[392390780,1761421881229,-151.0,0.000163,2]
[392390781,1761421881258,-2259.80076032,0.00016319,2]
[392390782,1761421881346,-3180.58283118,0.00016319,2]
[392390783,1761421884113,-176.019,0.00016326,2]
[392390784,1761421884144,-196.0,0.00016341,2]
[392390785,1761421884174,-500.0,0.00016347,2]
[392390786,1761421884205,-196.0,0.00016397,2]
[392390787,1761421884234,-151.0,0.000164,2]
[392390788,1761421884265,-277.94212157,0.000164,2]
[392390789,1761421884377,-7006.08775686,0.000164,2]
[392390790,1761421897497,681.29922228,0.00015616,2]
[392390791,1761421907118,258.17185687,0.00015989,2]
[392390792,1761421907148,521.83864467,0.00015989,2]
[392390793,1761421907188,500.0,0.00015989,2]
[392390794,1761421907219,500.0,0.00015989,2]
[392390795,1761421907254,500.0,0.00015989,2]
[392390796,1761421907287,500.0,0.00015989,2]
[392390797,1761421907318,583.80542555,0.00015989,2]
[392390798,1761421907354,500.0,0.00015989,2]
[392390799,1761421907386,500.0,0.00015989,2]
[392390800,1761421907460,500.0,0.00015989,2]
[392390811,1761421929728,-300.0,0.00016236,2]
[392390812,1761421929756,-500.93,0.00016237,2]
[392390813,1761421929783,-500.93,0.00016237,2]
[392390814,1761421929811,-500.93,0.00016237,2]
[392390815,1761421929838,-500.93,0.00016237,2]
[392390816,1761421929866,-500.93,0.00016237,2]
[392390817,1761421929896,-500.93,0.00016237,2]
[392390818,1761421929927,-500.93,0.00016237,2]
[392390819,1761421929955,-500.93,0.00016237,2]
[392390820,1761421929984,-500.93,0.00016237,2]
[392390827,1761421935626,-500.93,0.00016237,2]
[392390828,1761421935658,-500.93,0.00016237,2]
[392390829,1761421935686,-500.93,0.00016237,2]
[392390830,1761421935715,-500.93,0.00016237,2]
[392390831,1761421935741,-500.0,0.00016237,2]
[392390832,1761421935769,-168.0,0.00016316,2]
[392390833,1761421935796,-2193.81909773,0.00016338,2]
[392390835,1761421941699,-268.93180454,0.00016338,2]
[392390836,1761421941727,-1346.1859517,0.00016338,2]
[392390837,1761421941755,-500.93,0.00016399,2]
[392390838,1761421941784,-176.02,0.000164,2]
[392390839,1761421941817,-168.0,0.00016402,2]
[392390840,1761421942057,-257.98763355,0.00016437,2]
[392390841,1761421948582,-10000.01,0.00016437,2]
[392390842,1761421948889,-10000.01,0.00016437,2]
[392390843,1761421963166,190.066398,0.00019,6]
[392390844,1761421965840,-453.75615839,0.00016436,2]
[392390845,1761421965872,-1200.0,0.00016436,2]
[392390846,1761421965930,-6692.49768322,0.00016437,2]
[392390847,1761421965967,-10000.01,0.00016437,2]
[392390848,1761421979805,-196.0,0.0001511,2]
[392390849,1761421979827,-9.1613905,0.00015206,2]
[392390850,1761421983482,-186.8386095,0.00015206,2]
[392390851,1761421983504,-9.1613905,0.00015303,2]
[392390852,1761421986318,-186.8386095,0.00015303,2]
[392390853,1761421986341,-9.1613905,0.00015399,2]
[392390854,1761421987870,-186.8386095,0.00015399,2]
[392390855,1761421987895,-17.04864085,0.00015496,2]
[392390856,1761421989901,-178.95135915,0.00015496,2]
[392390857,1761421989925,-17.04864085,0.00015592,2]
[392390858,1761421991921,-186.8386095,0.0001515,2]
[392390859,1761421991945,-9.1613905,0.00015592,2]
[392390860,1761421996105,-169.78996865,0.00015592,2]
[392390861,1761421996878,-196.0,0.00015689,2]
[392390862,1761421999886,-187.88725035,0.00015785,2]
[392390863,1761422011383,-8.11274965,0.00015785,2]
[392390864,1761422011414,-196.0,0.00015882,2]
[392390865,1761422011444,-196.0,0.00015978,2]
[392390866,1761422011474,-196.0,0.00016075,2]
[392390867,1761422011507,-196.0,0.00016171,2]
[392390868,1761422011538,-196.0,0.00016267,2]
[392390869,1761422011569,-196.0,0.00016364,2]
[392390870,1761422011601,-500.0,0.00016436,2]
[392390871,1761422011632,-500.0,0.00016436,2]
[392390872,1761422011665,-500.0,0.00016436,2]
[392390873,1761422011695,-500.0,0.00016436,2]
[392390874,1761422011724,-500.0,0.00016436,2]
[392390875,1761422011750,-500.0,0.00016436,2]
[392390876,1761422011780,-500.0,0.00016436,2]
[392390877,1761422011808,-131.7845007,0.00016436,2]
[392390878,1761422012048,-368.2154993,0.00016436,2]
[392390879,1761422012078,-500.0,0.00016436,2]
[392390880,1761422012109,-225.09157332,0.00016436,2]
[392390881,1761422012140,-500.0,0.00016436,2]
[392390882,1761422012169,-500.0,0.00016436,2]
[392390883,1761422012199,-500.0,0.00016436,2]
[392390884,1761422012228,-500.0,0.00016436,2]
[392390885,1761422012257,-500.0,0.00016436,2]
[392390886,1761422012287,-500.0,0.00016436,2]
[392390887,1761422012315,-500.0,0.00016436,2]
[392390888,1761422012345,-313.39585476,0.00016436,2]
[392390889,1761422012650,-54.81964454,0.00016436,2]
[392390890,1761422012691,-131.7845007,0.00016436,2]
[392390891,1761422012700,-368.2154993,0.00016436,2]
[392390892,1761422012859,160.03216134,0.00015592,2]
[392390893,1761422012885,22.69145573,0.00015592,2]
[392390894,1761422017305,-131.7845007,0.00016436,2]
[392390895,1761422017333,-500.0,0.00016436,2]
[392390896,1761422017363,-500.0,0.00016436,2]
[392390897,1761422017393,-400.93747351,0.00016436,2]
[392390898,1761422017423,-500.0,0.00016436,2]
[392390899,1761422017456,-500.0,0.00016436,2]
[392390900,1761422017486,-500.0,0.00016436,2]
[392390901,1761422017516,-500.0,0.00016436,2]
[392390902,1761422017547,-300.0,0.00016436,2]
[392390903,1761422017740,-2334.56605158,0.00016437,2]
[392390904,1761422023494,-10000.01,0.00016437,2]
[392390905,1761422029610,-10000.01,0.00016138,2]
[392390906,1761422029851,-10000.01,0.00016138,2]
[392390907,1761422029976,-10000.01,0.00016138,2]
[392390908,1761422030114,-10000.01,0.00016138,2]
[392390909,1761422030240,-10000.01,0.00016138,2]
[392390910,1761422035459,-10000.01,0.00016138,2]
[392390911,1761422053626,-300.0,0.00016137,2]
[392390912,1761422072200,546.67458097,0.00016137,2]
[392390913,1761422072233,284.7439555,0.00016137,2]
[392390914,1761422073035,324.82387567,0.00016137,2]
[392390915,1761422073064,369.51882064,0.00016137,2]
[392390916,1761422073100,500.0,0.00016137,2]
[392390917,1761422073139,500.0,0.00016137,2]
[392390918,1761422073181,500.0,0.00016137,2]
[392390919,1761422073224,500.0,0.00016137,2]
[392390920,1761422073265,619.66852649,0.00016137,2]
[392390921,1761422073327,370.02801649,0.00016137,2]
[392390922,1761422095599,196.0,0.00016,2]
[392390923,1761422095936,196.0,0.00016057,2]
[392390924,1761422096222,196.0,0.00016114,2]
[392390925,1761422102253,1200.0,0.00016137,2]
[392390926,1761422103163,300.0,0.00016137,2]
[392390928,1761422143910,500.0,0.00015989,2]
[392390929,1761422162322,300.0,0.00016137,2]
[392390930,1761422178806,168.0,0.00015792,2]
[392390931,1761422214423,211.0960333,0.00015358,2]
[392390932,1761422220967,196.0,0.00016,2]
[392390933,1761422221275,196.0,0.00016117,2]
[392390934,1761422222296,300.0,0.00016137,2]
[392390939,1761422258078,925.45619094,0.00016137,2]
[392390940,1761422258100,274.54380906,0.00016137,2]
[392390941,1761422280052,519.66743094,0.00016042,2]
[392390942,1761422282659,300.0,0.00016137,2]
[392390944,1761422335395,196.0,0.00016,2]
[392390945,1761422335692,196.0,0.00016062,2]
[392390946,1761422336000,196.0,0.00016124,2]
[392390948,1761422342376,300.0,0.00016137,2]
[392390950,1761422359841,338.37401534,0.00015521,2]
[392390951,1761422367286,198.74335244,0.00016042,2]
[392390953,1761422402666,500.0,0.00016137,2]
[392390954,1761422402701,300.0,0.00016137,2]
[392390955,1761422402776,500.0,0.00016137,2]
[392390956,1761422402869,1200.0,0.00016137,2]
[392390957,1761422403020,500.0,0.00016137,2]
[392390958,1761422403273,500.0,0.00016137,2]
[392390959,1761422403540,500.0,0.00016137,2]
[392390960,1761422403789,500.0,0.00016137,2]
[392390961,1761422404036,500.0,0.00016137,2]
[392390962,1761422404301,500.0,0.00016137,2]
[392390963,1761422404574,580.46128564,0.00016137,2]
[392390964,1761422407386,1400.22010658,0.0001613,2]
[392390965,1761422407406,101.77989342,0.0001613,2]
[392390966,1761422414036,213.96859442,0.00016138,2]
[392390967,1761422414701,2849.0,0.0001607,2]
[392390968,1761422458965,196.0,0.00016,2]
[392390969,1761422459256,196.0,0.00016124,2]
[392390970,1761422462754,300.0,0.00016137,2]
[392390971,1761422518801,-281.98927418,0.00016138,2]
[392390972,1761422520915,-217.37243874,0.00016138,2]
[392390973,1761422522716,300.0,0.00016137,2]
[392390974,1761422566029,184.63593,0.00019,6]
[392390975,1761422574481,196.0,0.00016,2]
[392390976,1761422574769,196.0,0.0001607,2]
[392390977,1761422582893,300.0,0.00016137,2]
[392390978,1761422642189,300.0,0.00016137,2]
[392390979,1761422663588,1117.79180628,0.0001552,2]
[392390980,1761422667161,3733.46970588,0.00015319,2]
[392390981,1761422667182,10000.01,0.00015319,2]
[392390982,1761422667205,10000.01,0.00015319,2]
[392390983,1761422667226,6266.54029412,0.00015319,2]
[392390984,1761422698193,196.0,0.00016,2]
[392390985,1761422698491,196.0,0.00016131,2]
[392390986,1761422702185,300.0,0.00016137,2]
[392390987,1761422702346,1200.0,0.00016137,2]
[392390988,1761422714172,213.96859442,0.00016138,2]
[392390990,1761422762505,300.0,0.00016137,2]
[392390991,1761422778384,999.0,0.00015316,2]
[392390992,1761422813830,196.0,0.00016,2]
[392390993,1761422814140,132.50111146,0.00016078,2]
[392390994,1761422814164,63.49888854,0.00016078,2]
[392390995,1761422882152,300.0,0.00016137,2]
[392390996,1761422937317,196.0,0.00016,2]
[392390997,1761422941124,9440.51111146,0.00015301,2]
[392390998,1761422941145,10000.01,0.00015301,2]
[392390999,1761422941166,975.42687124,0.00015301,2]
[392391000,1761422942316,300.0,0.00016137,2]
[392391001,1761422952774,1251.605745,0.00015309,2]
[392391002,1761422966166,309.76024615,0.0001552,2]
[392391003,1761422968369,483.51638423,0.0001552,2]
[392391004,1761422968658,500.0,0.00016137,2]
[392391005,1761422968693,500.0,0.00016137,2]
[392391006,1761422968728,500.0,0.00016137,2]
[392391007,1761422968755,500.0,0.00016137,2]
[392391008,1761422968783,442.95345627,0.00016137,2]
[392391009,1761422968814,500.0,0.00016137,2]
[392391010,1761422968851,607.21068031,0.00016137,2]
[392391011,1761422968884,500.0,0.00016137,2]
[392391012,1761422968915,500.0,0.00016137,2]
[392391013,1761422968945,500.0,0.00016137,2]
[392391014,1761422968977,500.0,0.00016137,2]
[392391015,1761422969003,620.14210718,0.00016137,2]
[392391016,1761422969032,500.0,0.00016137,2]
[392391017,1761422969061,9.39450962,0.00016137,2]
[392391018,1761422969083,490.60549038,0.00016137,2]
[392391019,1761422969114,500.0,0.00016137,2]
[392391020,1761422969146,500.0,0.00016137,2]
[392391021,1761422969175,500.0,0.00016137,2]
[392391022,1761422969204,500.0,0.00016137,2]
[392391023,1761422969233,280.11785435,0.00016137,2]
[392391024,1761422969263,500.0,0.00016137,2]
[392391025,1761422969296,500.0,0.00016137,2]
[392391026,1761422969326,500.0,0.00016137,2]
[392391027,1761422969365,500.0,0.00016137,2]
[392391028,1761422969395,500.0,0.00016137,2]
[392391029,1761422969431,500.0,0.00016137,2]
[392391030,1761422969458,500.0,0.00016137,2]
[392391031,1761422969484,500.0,0.00016137,2]
[392391032,1761422969512,500.0,0.00016137,2]
[392391033,1761422969540,500.0,0.00016137,2]
[392391034,1761422969567,500.0,0.00016137,2]
[392391035,1761422969598,500.0,0.00016137,2]
[392391036,1761422969630,500.0,0.00016137,2]
[392391037,1761422969661,500.0,0.00016137,2]
[392391038,1761422969694,229.28665527,0.00016137,2]
[392391039,1761422969717,270.71334473,0.00016137,2]
[392391040,1761422969748,500.0,0.00016137,2]
[392391041,1761422969805,500.0,0.00016137,2]
[392391042,1761422978797,500.0,0.00016137,2]
[392391043,1761422978832,500.0,0.00016137,2]
[392391044,1761422978862,500.0,0.00016137,2]
[392391045,1761422978895,500.0,0.00016137,2]
[392391046,1761422978925,500.0,0.00016137,2]
[392391047,1761422978963,500.0,0.00016137,2]
[392391048,1761422978996,650.58287177,0.00016137,2]
[392391049,1761422979031,500.0,0.00016137,2]
[392391050,1761422979064,500.0,0.00016137,2]
[392391051,1761422979094,500.0,0.00016137,2]
[392391052,1761422979125,500.0,0.00016137,2]
[392391053,1761422979159,500.0,0.00016137,2]
[392391054,1761422979191,500.0,0.00016137,2]
[392391055,1761422979230,500.0,0.00016137,2]
[392391056,1761422979272,500.0,0.00016137,2]
[392391057,1761422979300,500.0,0.00016137,2]
[392391058,1761422979366,500.0,0.00016137,2]
[392391059,1761422988142,78.7137835,0.00016137,2]
[392391060,1761422988164,309.0735936,0.00016137,2]
[392391061,1761422999464,500.0,0.00016137,2]
[392391062,1761422999537,500.0,0.00016137,2]
[392391063,1761422999563,500.0,0.00016137,2]
[392391064,1761422999590,500.0,0.00016137,2]
[392391065,1761422999618,500.0,0.00016137,2]
[392391066,1761422999648,241.59793505,0.00016137,2]
[392391067,1761422999679,432.97464631,0.00016137,2]
[392391068,1761423001415,300.0,0.00016137,2]
[392391069,1761423001977,300.0,0.00016137,2]
[392391070,1761423002055,1200.0,0.00016137,2]
[392391071,1761423002423,226.0,0.00016137,2]
[392391072,1761423013846,164.26999066,0.000153,2]
[392391073,1761423015280,153.60453898,0.00016137,2]
[392391074,1761423018703,240.47620025,0.00016137,2]
[392391075,1761423029340,-201.80210112,0.00016138,2]
[392391114,1761423032469,-626.80740713,0.00016138,2]